[Event "Nakhchivan Open 2024"]
[Site "Nakhchivan"]
[Date "2024.01.11"]
[Round "3.4"]
[White "Hasanli, Rza"]
[Black "Ahmadov, Fariz"]
[Result "0-1"]
[ECO "A41"]
[WhiteElo "1622"]
[BlackElo "2193"]
[Annotator "RC"]
[PlyCount "112"]
[EventDate "2024.01.11"]
[EventType "swiss"]
[EventCountry "AZE"]
[SourceTitle "playchess.com"]
[Source "ChessBase"]
[SourceQuality "1"]
[TimeControl "5400+30"]

1. d4 {[%emt 0:00:05]} d6 {[%emt 0:02:58]} 2. Nf3 {[%emt 0:01:29]} Nf6 {[%emt 0:00:12]} 3. c4 {[%emt 0:01:31]} c6 {[%emt 0:00:05]} 4. Nc3 {[%emt 0:00:10]} Qc7 {[%emt 0:00:07]} 5. e4 {[%emt 0:00:11]} e5 {[%emt 0:00:05]} 6. Be2 {[%emt 0:02:01]} Be7 {[%emt 0:00:06]} 7. Be3 {[%emt 0:01:34]} O-O {[%emt 0:00:17]} 8. O-O {[%emt 0:00:20]} Re8 {[%emt 0:02:55]} 9. d5 {[%emt 0:00:42]} c5 {[%emt 0:02:21]} 10. Nd2 {[%emt 0:02:22]} a6 {[%emt 0:01:14]} 11. a3 {[%emt 0:01:46]} Nbd7 {[%emt 0:02:52]} 12. b4 {[%emt 0:02:05]} b6 {[%emt 0:00:21]} 13. Qc2 {[%emt 0:05:57]} Nf8 {[%emt 0:03:03]} 14. bxc5 {[%emt 0:02:15]} bxc5 {[%emt 0:00:05]} 15. f3 {[%emt 0:00:34]} Nh5 {[%emt 0:00:22]} 16. Rfb1 {[%emt 0:00:31]} Nf4 {[%emt 0:00:39]} 17. Bf1 {[%emt 0:00:17]} Bg5 {[%emt 0:00:18]} 18. Bf2 {[%emt 0:01:43]} N8g6 {[%emt 0:01:25]} 19. Na4 {[%emt 0:12:48]} Qa5 {[%emt 0:04:15]} 20. Ra2 {[%emt 0:16:05]} Nh5 {[%emt 0:08:00]} 21. Be1 {[%emt 0:08:09]} Be3+ {[%emt 0:00:24]} 22. Kh1 {[%emt 0:00:11]} Qd8 {[%emt 0:00:03]} 23. Nb6 {[%emt 0:07:17]} Rb8 {[%emt 0:00:23]} 24. Nxc8 {[%emt 0:00:19]} Rxc8 {[%emt 0:00:13]} 25. Qa4 {[%emt 0:05:32]} Qg5 {[%emt 0:00:33]} 26. Qd7 {[%emt 0:01:43]} Bd4 {[%emt 0:02:29]} 27. Nb3 {[%emt 0:10:57]} Nf6 {[%emt 0:04:54]} 28. Qf5 {[%emt 0:02:04]} Qxf5 29. exf5 {[%emt 0:00:08]} Ne7 {[%emt 0:02:26]} 30. Bd3 {[%emt 0:01:19]} Rb8 {[%emt 0:00:58]} 31. Nxd4 {[%emt 0:02:48]} Rxb1 {[%emt 0:01:02]} 32. Bxb1 {[%emt 0:00:06]} exd4 {[%emt 0:00:08]} 33. Bg3 {[%emt 0:05:06]} Rb8 {[%emt 0:00:20]} 34. Bc2 {[%emt 0:03:54]} Rb6 {[%emt 0:00:14]} 35. Ra1 {[%emt 0:01:32]} Nd7 {[%emt 0:00:36]} 36. Re1 {[%emt 0:00:48]} Kf8 {[%emt 0:00:42]} 37. Rb1 {[%emt 0:01:29]} Rxb1+ {[%emt 0:02:00]} 38. Bxb1 {[%emt 0:00:09]} Nc8 {[%emt 0:00:04]} 39. Bc2 {[%emt 0:01:15]} Ke7 {[%emt 0:00:16]} 40. Kg1 {[%emt 0:00:31]} g6 {[%emt 0:01:39]} 41. fxg6 {[%emt 0:00:26]} hxg6 {[%emt 0:00:05]} 42. Kf2 {[%emt 0:00:10]} f5 {[%emt 0:01:38]} 43. Bh4+ {[%emt 0:00:24]} Kf7 {[%emt 0:00:05]} 44. f4 {[%emt 0:00:25]} Ncb6 {[%emt 0:01:02]} 45. Bb3 {[%emt 0:00:58]} Nf6 {[%emt 0:00:14]} 46. Bxf6 {[%emt 0:00:44]} Kxf6 {[%emt 0:00:01]} 47. Kf3 {[%emt 0:00:32]} Kg7 {[%emt 0:00:23]} 48. h3 {[%emt 0:00:28]} Nd7 {[%emt 0:00:54]} 49. g4 {[%emt 0:00:16]} fxg4+ {[%emt 0:00:59]} 50. hxg4 {[%emt 0:00:06]} g5 {[%emt 0:01:05]} 51. f5 {[%emt 0:01:10]} Ne5+ {[%emt 0:00:19]} 52. Kg3 {[%emt 0:00:07]} Kf6 {[%emt 0:00:09]} 53. Ba2 {[%emt 0:00:54]} a5 {[%emt 0:00:46]} 54. a4 {[%emt 0:00:23]} d3 {[%emt 0:00:43]} 55. Bb3 {[%emt 0:00:18]} d2 {[%emt 0:00:05]} 56. Kh3 {[%emt 0:00:49]} Nxc4 {[%emt 0:00:14]} 0-1

[Event "Nakhchivan Open 2024"]
[Site "Nakhchivan"]
[Date "2024.01.11"]
[Round "3.5"]
[White "Mamedjarova, Zeinab"]
[Black "Seyidli, Mirsaleh"]
[Result "1-0"]
[ECO "A45"]
[WhiteElo "2173"]
[BlackElo "1775"]
[Annotator "RC"]
[PlyCount "121"]
[EventDate "2024.01.11"]
[EventType "swiss"]
[EventCountry "AZE"]
[SourceTitle "playchess.com"]
[Source "ChessBase"]
[SourceQuality "1"]
[TimeControl "5400+30"]

1. d4 {[%emt 0:00:05]} Nf6 {[%emt 0:00:19]} 2. g3 {[%emt 0:00:14]} d6 {[%emt 0:00:26]} 3. Bg2 {[%emt 0:00:04]} Nbd7 {[%emt 0:01:06]} 4. Nf3 {[%emt 0:04:18]} g6 {[%emt 0:00:16]} 5. O-O {[%emt 0:00:03]} Bg7 {[%emt 0:00:02]} 6. Re1 {[%emt 0:02:28]} O-O {[%emt 0:00:04]} 7. c3 {[%emt 0:00:13]} e5 {[%emt 0:02:06]} 8. e4 {[%emt 0:00:21]} c6 {[%emt 0:00:53]} 9. Nbd2 {[%emt 0:02:05]} Qc7 {[%emt 0:00:26]} 10. a4 {[%emt 0:03:23]} Rd8 {[%emt 0:01:24]} 11. a5 {[%emt 0:00:29]} exd4 {[%emt 0:05:12]} 12. Nxd4 {[%emt 0:06:01]} Ne5 {[%emt 0:03:05]} 13. Qe2 {[%emt 0:05:33]} c5 {[%emt 0:01:38]} 14. Nb5 {[%emt 0:02:12]} Qe7 {[%emt 0:03:38]} 15. f4 {[%emt 0:01:13]} Nc6 {[%emt 0:00:34]} 16. a6 {[%emt 0:05:09]} Ne8 {[%emt 0:15:26]} 17. Nc4 {[%emt 0:09:06]} Nc7 {[%emt 0:01:53]} 18. Ne3 {[%emt 0:06:18]} bxa6 {[%emt 0:06:38]} 19. Nxc7 {[%emt 0:00:24]} Qxc7 {[%emt 0:00:03]} 20. Nd5 {[%emt 0:00:13]} Qb8 {[%emt 0:00:05]} 21. e5 {[%emt 0:02:56]} dxe5 {[%emt 0:00:28]} 22. fxe5 {[%emt 0:00:15]} Re8 {[%emt 0:04:57]} 23. Bf4 {[%emt 0:20:30]} Nxe5 {[%emt 0:01:50]} 24. Nc7 {[%emt 0:00:31]} Qxc7 {[%emt 0:00:11]} 25. Bxa8 {[%emt 0:00:07]} Qb6 {[%emt 0:04:52]} 26. Bg2 {[%emt 0:07:04]} c4+ {[%emt 0:02:26]} 27. Kh1 {[%emt 0:02:12]} Bg4 {[%emt 0:00:15]} 28. Qxc4 {[%emt 0:02:27]} Be6 {[%emt 0:02:46]} 29. Qxa6 {[%emt 0:04:58]} Qxa6 {[%emt 0:00:16]} 30. Rxa6 {[%emt 0:00:03]} Nd3 {[%emt 0:00:06]} 31. Re2 {[%emt 0:03:00]} Bf8 {[%emt 0:00:16]} 32. Bd6 {[%emt 0:05:10]} Nc5 {[%emt 0:02:15]} 33. Rc6 {[%emt 0:00:41]} Rd8 {[%emt 0:00:29]} 34. Bxc5 {[%emt 0:04:25]} Bxc5 {[%emt 0:00:23]} 35. Re1 {[%emt 0:00:18]} Bb6 {[%emt 0:00:09]} 36. c4 {[%emt 0:00:12]} Rd2 {[%emt 0:00:23]} 37. c5 {[%emt 0:00:43]} Ba5 {[%emt 0:00:12]} 38. Ra6 {[%emt 0:01:28]} Bb4 {[%emt 0:00:03]} 39. c6 {[%emt 0:00:10]} Rc2 {[%emt 0:00:43]} 40. Rb1 {[%emt 0:01:03]} Bc5 {[%emt 0:00:37]} 41. b4 {[%emt 0:00:10]} Bb6 {[%emt 0:00:04]} 42. Raa1 {[%emt 0:00:30]} Be3 {[%emt 0:00:47]} 43. Re1 {[%emt 0:00:22]} Bg5 {[%emt 0:00:29]} 44. h4 {[%emt 0:00:52]} Be7 {[%emt 0:00:14]} 45. b5 {[%emt 0:00:58]} Bd6 {[%emt 0:00:22]} 46. Rac1 {[%emt 0:01:04]} Rxc1 {[%emt 0:00:14]} 47. Rxc1 {[%emt 0:00:01]} Bc7 {[%emt 0:00:05]} 48. Kh2 {[%emt 0:00:25]} Kf8 {[%emt 0:00:03]} 49. Ra1 {[%emt 0:00:48]} Bb6 {[%emt 0:00:04]} 50. Bh3 {[%emt 0:00:07]} f5 {[%emt 0:00:05]} 51. Rc1 {[%emt 0:01:05]} Bc7 {[%emt 0:00:12]} 52. Ra1 {[%emt 0:00:59]} Bb6 {[%emt 0:01:15]} 53. Bf1 {[%emt 0:00:18]} Ke7 {[%emt 0:00:12]} 54. Rc1 {[%emt 0:00:34]} Kd6 {[%emt 0:00:04]} 55. Bc4 {[%emt 0:00:15]} Bxc4 {[%emt 0:00:45]} 56. Rxc4 {[%emt 0:00:01]} Kc7 {[%emt 0:00:21]} 57. Rc1 {[%emt 0:00:20]} h6 {[%emt 0:01:12]} 58. Rd1 {[%emt 0:00:12]} g5 {[%emt 0:00:04]} 59. Rd7+ {[%emt 0:00:11]} Kc8 {[%emt 0:00:03]} 60. h5 {[%emt 0:00:56]} Bc7 {[%emt 0:00:12]} 61. Rh7 {[%emt 0:00:17]} 1-0

[Event "Nakhchivan Open 2024"]
[Site "Nakhchivan"]
[Date "2024.01.11"]
[Round "3.6"]
[White "Israilov, Agil"]
[Black "Baghirov, Mahammad"]
[Result "1/2-1/2"]
[ECO "B39"]
[WhiteElo "2114"]
[BlackElo "1621"]
[Annotator "TA"]
[PlyCount "46"]
[EventDate "2024.01.11"]
[EventType "swiss"]
[EventCountry "AZE"]
[SourceTitle "playchess.com"]
[Source "ChessBase"]
[SourceQuality "1"]
[TimeControl "5400+30"]

{[%evp 24,46,57,48,50,46,59,-10,-4,-78,-80,-69,-73,-77,-72,-73,-72,-66,-59,-75,-57,-63,-43,-53,37]} 1. e4 {[%emt 0:02:36]} c5 {[%emt 0:00:06]} 2. Nf3 {[%emt 0:00:04]} g6 {[%emt 0:00:04]} 3. d4 {[%emt 0:00:04]} cxd4 {[%emt 0:00:05]} 4. Nxd4 {[%emt 0:00:03]} Nc6 {[%emt 0:00:13]} 5. c4 {[%emt 0:00:06]} Bg7 {[%emt 0:00:05]} 6. Be3 {[%emt 0:00:05]} Nf6 {[%emt 0:00:06]} 7. Nc3 {[%emt 0:00:03]} Ng4 {[%emt 0:00:22]} 8. Qxg4 {[%emt 0:00:06]} Nxd4 {[%emt 0:00:04]} 9. Qd1 {[%emt 0:00:09]} e5 {[%emt 0:00:01]} 10. Bd3 {[%emt 0:02:11]} d6 {[%emt 0:01:05]} 11. O-O {[%emt 0:00:35]} O-O {[%emt 0:00:03]} 12. Qd2 {[%emt 0:01:04]} Be6 {[%emt 0:02:18]} 13. Rad1 {[%emt 0:03:27]} a6 {[%emt 0:03:50]} 14. b3 {[%emt 0:01:38]} Rc8 {[%emt 0:00:41]} 15. Bb1 {[%emt 0:04:59]} (15. f3 $14) 15... b5 $11 {[%emt 0:01:19] Die Stellung ist ausgeglichen.} 16. Nd5 {[%emt 0:09:12]} (16. f4 $1 $11 {hält das Gleichgewicht.} Bg4 (16... bxc4 17. f5 $11) 17. Rc1) 16... bxc4 $17 {[%emt 0:00:19] Weiss muss nun ...c3 beachten.} 17. bxc4 {[%emt 0:00:03]} Rxc4 {[%emt 0:00:13]} 18. Bd3 {[%emt 0:00:09] [#]} Bxd5 {[%emt 0:01:51]} 19. exd5 {[%emt 0:00:07]} Rc5 {[%emt 0:00:04]} 20. Bxd4 {[%emt 0:00:35]} exd4 {[%emt 0:00:02]} 21. Bxa6 {[%emt 0:00:14]} Qa8 {[%emt 0:00:28]} 22. Bd3 {[%emt 0:02:02]} Qxd5 {[%emt 0:00:02]} 23. a4 {[%emt 0:00:56]} Qb3 {[%emt 0:00:51] Gewichteter Fehlerwert: Weiß=0.17 (sehr präzise) /Schwarz=0.05 (makellos) .  Fehler:       	Weiß=2     	Schwarz=1     OK:         	Weiß=6     	Schwarz=2     Bester:       	---       	Schwarz=2} ({Besser ist} 23... Bf6 $15) 1/2-1/2

[Event "Nakhchivan Open 2024"]
[Site "Nakhchivan"]
[Date "2024.01.12"]
[Round "4.1"]
[White "Gasimov, Parviz"]
[Black "Mamedjarova, Zeinab"]
[Result "1-0"]
[ECO "C50"]
[WhiteElo "2362"]
[BlackElo "2173"]
[Annotator "RC"]
[PlyCount "109"]
[EventDate "2024.01.11"]
[EventType "swiss"]
[EventCountry "AZE"]
[SourceTitle "playchess.com"]
[Source "ChessBase"]
[SourceQuality "1"]
[TimeControl "5400+30"]

1. e4 {[%emt 0:00:39]} e5 {[%emt 0:00:13]} 2. Bc4 {[%emt 0:00:11]} Nf6 {[%emt 0:00:37]} 3. d3 {[%emt 0:00:11]} Nc6 {[%emt 0:00:13]} 4. Nf3 {[%emt 0:00:22]} Bc5 {[%emt 0:00:39]} 5. O-O {[%emt 0:01:36]} h6 {[%emt 0:00:25]} 6. c3 {[%emt 0:00:33]} d6 {[%emt 0:00:24]} 7. a4 {[%emt 0:00:50]} a5 {[%emt 0:01:43]} 8. Na3 {[%emt 0:05:48]} O-O {[%emt 0:01:34]} 9. Nc2 {[%emt 0:03:53]} Be6 {[%emt 0:02:06]} 10. Bxe6 {[%emt 0:09:20]} fxe6 {[%emt 0:00:12]} 11. Be3 {[%emt 0:03:57]} Bxe3 {[%emt 0:07:49]} 12. Nxe3 {[%emt 0:01:11]} Qd7 {[%emt 0:18:39]} 13. Nc4 {[%emt 0:07:34]} Ne7 {[%emt 0:02:34]} 14. Re1 {[%emt 0:12:40]} Ng6 {[%emt 0:01:46]} 15. d4 {[%emt 0:18:05]} Qc6 {[%emt 0:02:54]} 16. Ncd2 {[%emt 0:02:04]} Kh8 {[%emt 0:07:06]} 17. Qb3 {[%emt 0:05:19]} b6 {[%emt 0:07:43]} 18. dxe5 {[%emt 0:13:49]} dxe5 {[%emt 0:06:02]} 19. Nc4 {[%emt 0:00:23]} Nd7 {[%emt 0:08:20]} 20. Qb5 {[%emt 0:00:18]} Qxb5 {[%emt 0:02:06]} 21. axb5 {[%emt 0:00:04]} Kh7 {[%emt 0:01:40]} 22. Rad1 {[%emt 0:01:51]} Rad8 {[%emt 0:02:14]} 23. b4 {[%emt 0:03:41]} axb4 {[%emt 0:01:45]} 24. cxb4 {[%emt 0:00:03]} Nf6 {[%emt 0:00:46]} 25. Rc1 {[%emt 0:01:00]} Rd3 {[%emt 0:04:00]} 26. Ncxe5 {[%emt 0:01:03]} Nxe5 {[%emt 0:00:34]} 27. Nxe5 {[%emt 0:00:01]} Rd4 {[%emt 0:03:39]} 28. Rc4 {[%emt 0:00:41]} Rd2 {[%emt 0:04:00]} 29. Rxc7 {[%emt 0:05:19]} Rb2 {[%emt 0:03:46]} 30. f3 {[%emt 0:01:27]} Rd8 {[%emt 0:00:46]} 31. Nc4 {[%emt 0:00:28]} Rxb4 {[%emt 0:01:38]} 32. Rc6 {[%emt 0:00:08]} Rxb5 {[%emt 0:01:08]} 33. Rxb6 {[%emt 0:01:27]} Rxb6 {[%emt 0:03:29]} 34. Nxb6 {[%emt 0:00:02]} Rd4 {[%emt 0:00:34]} 35. Rc1 {[%emt 0:00:22]} Nh5 {[%emt 0:01:10]} 36. Rc2 {[%emt 0:01:05]} Nf4 {[%emt 0:00:22]} 37. Nc4 {[%emt 0:00:56]} Kg6 {[%emt 0:01:30]} 38. Kf2 {[%emt 0:00:28]} Rd1 {[%emt 0:00:26]} 39. g3 {[%emt 0:00:34]} Nh3+ {[%emt 0:02:05]} 40. Kg2 {[%emt 0:00:31]} Ng5 {[%emt 0:00:13]} 41. Ne5+ {[%emt 0:00:19]} Kf6 {[%emt 0:00:24]} 42. Ng4+ {[%emt 0:00:41]} Kg6 {[%emt 0:00:37]} 43. Ne5+ {[%emt 0:00:13]} Kf6 {[%emt 0:00:05]} 44. Ng4+ {[%emt 0:00:32]} Kg6 {[%emt 0:00:06]} 45. h4 {[%emt 0:00:17]} Nf7 {[%emt 0:00:45]} 46. Rc6 {[%emt 0:00:36]} Rd2+ {[%emt 0:00:29]} 47. Kh3 {[%emt 0:00:33]} Nd8 {[%emt 0:01:29]} 48. Rc7 {[%emt 0:00:21]} h5 {[%emt 0:00:45]} 49. Ne5+ {[%emt 0:00:17]} Kh7 {[%emt 0:00:44]} 50. Re7 {[%emt 0:01:07]} Rd4 {[%emt 0:00:35]} 51. Re8 {[%emt 0:00:21]} Rd6 {[%emt 0:00:22]} 52. f4 {[%emt 0:00:46]} Nb7 {[%emt 0:00:43]} 53. Nf7 {[%emt 0:00:21]} Rb6 {[%emt 0:00:24]} 54. Rh8+ {[%emt 0:00:37]} Kg6 {[%emt 0:00:01]} 55. Ne5+ {[%emt 0:00:10]} 1-0

[Event "Nakhchivan Open 2024"]
[Site "Nakhchivan"]
[Date "2024.01.12"]
[Round "4.2"]
[White "Ahmadov, Fariz"]
[Black "Hasanzade, Toghrul"]
[Result "0-1"]
[ECO "A45"]
[WhiteElo "2193"]
[BlackElo "2329"]
[Annotator "RC"]
[PlyCount "46"]
[EventDate "2024.01.11"]
[EventType "swiss"]
[EventCountry "AZE"]
[SourceTitle "playchess.com"]
[Source "ChessBase"]
[SourceQuality "1"]
[TimeControl "5400+30"]

1. d4 {[%emt 0:02:35]} Nf6 {[%emt 0:00:34]} 2. Bf4 {[%emt 0:00:46]} g6 {[%emt 0:01:15]} 3. Nd2 {[%emt 0:00:27]} Bg7 {[%emt 0:03:10]} 4. e4 {[%emt 0:01:36]} d6 {[%emt 0:00:20]} 5. Ngf3 {[%emt 0:00:37]} O-O {[%emt 0:01:37]} 6. h3 {[%emt 0:02:30]} c5 {[%emt 0:05:06]} 7. d5 {[%emt 0:01:28]} Nbd7 {[%emt 0:12:25]} 8. c3 {[%emt 0:01:19]} Rb8 {[%emt 0:04:43]} 9. a4 {[%emt 0:01:25]} a6 {[%emt 0:03:01]} 10. a5 {[%emt 0:00:15]} Ne8 {[%emt 0:04:53]} 11. Bd3 {[%emt 0:02:38]} Ne5 {[%emt 0:03:03]} 12. Bxe5 {[%emt 0:00:52]} dxe5 {[%emt 0:00:22]} 13. Nc4 {[%emt 0:00:21]} Qc7 {[%emt 0:04:40]} 14. O-O {[%emt 0:01:57]} Bd7 {[%emt 0:01:45]} 15. Ne3 {[%emt 0:04:07]} f5 {[%emt 0:06:18]} 16. exf5 {[%emt 0:01:14]} gxf5 {[%emt 0:00:46]} 17. Ng5 {[%emt 0:00:05]} e4 {[%emt 0:09:13]} 18. d6 {[%emt 0:05:48]} Nxd6 {[%emt 0:01:27]} 19. Nd5 {[%emt 0:01:56]} Qd8 {[%emt 0:00:46]} 20. Nf4 {[%emt 0:02:16]} exd3 {[%emt 0:06:18]} 21. Qh5 {[%emt 0:00:44]} h6 {[%emt 0:00:46]} 22. Nge6 {[%emt 0:00:21]} Bxe6 {[%emt 0:00:40]} 23. Nxe6 {[%emt 0:00:09]} Qe8 {[%emt 0:00:22]} 0-1

[Event "Nakhchivan Open 2024"]
[Site "Nakhchivan"]
[Date "2024.01.12"]
[Round "4.3"]
[White "Kul, Ozdemir Efe"]
[Black "Aliyev, Aykhan"]
[Result "1/2-1/2"]
[ECO "A06"]
[WhiteElo "2223"]
[BlackElo "1962"]
[Annotator "RC"]
[PlyCount "86"]
[EventDate "2024.01.11"]
[EventType "swiss"]
[EventCountry "AZE"]
[SourceTitle "playchess.com"]
[Source "ChessBase"]
[SourceQuality "1"]
[TimeControl "5400+30"]

1. Nf3 {[%emt 0:04:05]} d5 {[%emt 0:00:06]} 2. g3 {[%emt 0:00:11]} Nf6 {[%emt 0:00:06]} 3. Bg2 {[%emt 0:00:05]} e6 {[%emt 0:00:04]} 4. O-O {[%emt 0:00:13]} Be7 {[%emt 0:00:13]} 5. d3 {[%emt 0:00:21]} O-O {[%emt 0:00:11]} 6. Nbd2 {[%emt 0:00:34]} c5 {[%emt 0:01:16]} 7. e4 {[%emt 0:00:35]} b6 {[%emt 0:04:03]} 8. e5 {[%emt 0:00:56]} Nfd7 {[%emt 0:01:12]} 9. Re1 {[%emt 0:00:40]} Bb7 {[%emt 0:00:18]} 10. h4 {[%emt 0:00:48]} Nc6 {[%emt 0:08:11]} 11. Nf1 {[%emt 0:00:39]} Re8 {[%emt 0:34:27]} 12. Bf4 {[%emt 0:01:27]} Nf8 {[%emt 0:09:27]} 13. h5 {[%emt 0:05:30]} f6 {[%emt 0:03:36]} 14. N1h2 {[%emt 0:09:47]} Nd7 {[%emt 0:09:27]} 15. Ng4 {[%emt 0:12:40]} f5 {[%emt 0:02:44]} 16. Ngh2 {[%emt 0:00:23]} b5 {[%emt 0:04:59]} 17. Qd2 {[%emt 0:02:53]} Nd4 {[%emt 0:03:43]} 18. Nxd4 {[%emt 0:05:38]} cxd4 {[%emt 0:00:02]} 19. Nf3 {[%emt 0:00:25]} Qb6 {[%emt 0:00:23]} 20. Bg5 {[%emt 0:00:45]} Bf8 {[%emt 0:01:22]} 21. h6 {[%emt 0:01:53]} g6 {[%emt 0:00:09]} 22. Qf4 {[%emt 0:00:51]} Bc5 {[%emt 0:01:12]} 23. g4 {[%emt 0:01:33]} Rf8 {[%emt 0:09:06]} 24. Bh3 {[%emt 0:00:43]} fxg4 {[%emt 0:00:13]} 25. Qxg4 {[%emt 0:00:14]} Rae8 {[%emt 0:00:21]} 26. Re2 {[%emt 0:03:47]} Qc7 {[%emt 0:03:02]} 27. Qg3 {[%emt 0:03:43]} Bc8 {[%emt 0:01:42]} 28. Kg2 {[%emt 0:01:56]} Qc6 {[%emt 0:02:22]} 29. Rg1 {[%emt 0:05:28]} Qc7 {[%emt 0:00:26]} 30. Bc1 {[%emt 0:05:28]} Kh8 {[%emt 0:00:31]} 31. a3 a5 {[%emt 0:00:20]} 32. b3 {[%emt 0:05:48]} Nb8 {[%emt 0:00:17]} 33. Bb2 {[%emt 0:05:28]} Nc6 {[%emt 0:00:02]} 34. Qh4 {[%emt 0:01:31]} Qe7 {[%emt 0:00:56]} 35. Qxe7 {[%emt 0:02:50]} Rxe7 {[%emt 0:00:47]} 36. Kg3 {[%emt 0:02:00]} Bb6 {[%emt 0:00:21]} 37. Bc1 {[%emt 0:00:28]} Bc7 {[%emt 0:00:25]} 38. Bg4 {[%emt 0:01:12]} Ref7 {[%emt 0:00:50]} 39. Rge1 {[%emt 0:00:54]} Kg8 {[%emt 0:00:24]} 40. Kg2 {[%emt 0:00:33]} Kh8 {[%emt 0:00:19]} 41. Bg5 {[%emt 0:01:19]} Bd8 {[%emt 0:00:19]} 42. Bc1 {[%emt 0:02:04]} Bc7 {[%emt 0:00:13]} 43. Bg5 {[%emt 0:03:19]} Bd8 {[%emt 0:00:03]} 1/2-1/2

[Event "Nakhchivan Open 2024"]
[Site "Nakhchivan"]
[Date "2024.01.12"]
[Round "4.4"]
[White "Baghirov, Mahammad"]
[Black "Azimov, Yasin"]
[Result "1-0"]
[ECO "D88"]
[WhiteElo "1621"]
[BlackElo "1608"]
[Annotator "NA RC COMBH"]
[PlyCount "63"]
[EventDate "2024.01.11"]
[EventType "swiss"]
[EventCountry "AZE"]
[SourceTitle "playchess.com"]
[Source "ChessBase"]
[SourceQuality "1"]
[TimeControl "5400+30"]

1. d4 {[%emt 0:00:21]} Nf6 {[%emt 0:00:13]} 2. c4 {[%emt 0:00:06]} g6 {[%emt 0:00:12]} 3. Nc3 {[%emt 0:00:25]} d5 {[%emt 0:00:05]} 4. cxd5 {[%emt 0:00:06]} Nxd5 {[%emt 0:00:22]} 5. e4 {[%emt 0:00:03]} Nxc3 {[%emt 0:00:16]} 6. bxc3 {[%emt 0:00:01]} Bg7 {[%emt 0:00:22]} 7. Bc4 {[%emt 0:00:03]} O-O {[%emt 0:01:16]} 8. Ne2 {[%emt 0:00:03]} c5 {[%emt 0:00:24]} 9. O-O {[%emt 0:00:08]} cxd4 {[%emt 0:06:15]} 10. cxd4 {[%emt 0:00:33]} Nc6 {[%emt 0:00:38]} 11. Be3 {[%emt 0:00:03]} Bd7 {[%emt 0:01:49]} 12. Qd2 {[%emt 0:02:55]} Rc8 {[%emt 0:03:47]} 13. Rac1 {[%emt 0:00:40]} a6 {[%emt 0:14:24]} 14. f3 Qa5 {[%emt 0:06:10]} 15. Qxa5 {[%emt 0:04:24]} Nxa5 {[%emt 0:00:07]} 16. Bd3 {[%emt 0:00:04]} Nc6 {[%emt 0:04:23]} 17. Rfd1 {[%emt 0:04:57]} Nb4 {[%emt 0:01:26]} 18. Bb1 {[%emt 0:00:18]} Ba4 {[%emt 0:05:26]} 19. Re1 {[%emt 0:03:32]} Bc2 {[%emt 0:01:51]} 20. Bd2 {[%emt 0:03:36]} Bxb1 {[%emt 0:00:06]} 21. Bxb4 {[%emt 0:00:13]} Rxc1 {[%emt 0:00:13]} 22. Rxc1 {[%emt 0:00:04]} Bd3 {[%emt 0:00:30]} 23. Kf2 {[%emt 0:01:07]} Bxe2 {[%emt 0:06:45]} 24. Kxe2 {[%emt 0:00:07]} Bxd4 {[%emt 0:00:10]} 25. Bxe7 {[%emt 0:00:03]} Re8 {[%emt 0:06:15]} 26. Rc7 {[%emt 0:00:05]} b5 {[%emt 0:03:06]} 27. f4 {[%emt 0:00:12]} Bb6 {[%emt 0:01:12]} 28. Rd7 {[%emt 0:00:46]} Rc8 {[%emt 0:02:12]} 29. Kd3 {[%emt 0:00:50]} Rc1 {[%emt 0:11:39]} 30. Rb7 {[%emt 0:02:51]} Rc7 {[%emt 0:05:48]} 31. Rb8+ {[%emt 0:00:09]} Kg7 {[%emt 0:00:16]} 32. Bf8+ {[%emt 0:00:01]} 1-0

[Event "Nakhchivan Open 2024"]
[Site "Nakhchivan"]
[Date "2024.01.12"]
[Round "4.6"]
[White "Gulumov, Muthat"]
[Black "Hatamov, Bahaddin"]
[Result "1-0"]
[ECO "C51"]
[WhiteElo "1843"]
[BlackElo "1295"]
[Annotator "NA RC COMBH"]
[PlyCount "71"]
[EventDate "2024.01.11"]
[EventType "swiss"]
[EventCountry "AZE"]
[SourceTitle "playchess.com"]
[Source "ChessBase"]
[SourceQuality "1"]
[TimeControl "5400+30"]

1. e4 {[%emt 0:00:01]} e5 {[%emt 0:00:17]} 2. Nf3 {[%emt 0:00:05]} Nc6 {[%emt 0:00:13]} 3. Bc4 {[%emt 0:00:05]} Bc5 {[%emt 0:00:34]} 4. b4 {[%emt 0:00:05]} Bb6 {[%emt 0:00:28]} 5. a4 {[%emt 0:04:17]} a6 {[%emt 0:02:05]} 6. O-O {[%emt 0:01:03]} Nf6 {[%emt 0:00:37]} 7. d4 {[%emt 0:04:45]} Bxd4 {[%emt 0:04:13]} 8. Nxd4 {[%emt 0:00:28]} Nxd4 {[%emt 0:00:13]} 9. f4 {[%emt 0:00:14]} d6 {[%emt 0:01:32]} 10. fxe5 {[%emt 0:02:11]} dxe5 {[%emt 0:00:19]} 11. Bg5 {[%emt 0:00:11]} Bg4 {[%emt 0:01:26]} 12. Bxf6 {[%emt 0:03:01]} Bxd1 {[%emt 0:01:48]} 13. Bxd8 {[%emt 0:00:27]} Rxd8 {[%emt 0:00:22]} 14. Bxf7+ {[%emt 0:07:57]} Ke7 {[%emt 0:01:01]} 15. Nc3 {[%emt 0:01:01]} Ne2+ {[%emt 0:00:55]} 16. Nxe2 {[%emt 0:00:11]} Bxe2 {[%emt 0:00:11]} 17. Rf2 {[%emt 0:00:12]} Bg4 {[%emt 0:01:37]} 18. Bd5 {[%emt 0:00:22]} c6 {[%emt 0:01:41]} 19. Rf7+ {[%emt 0:00:29]} Kd6 {[%emt 0:00:46]} 20. Rxg7 {[%emt 0:00:45]} cxd5 {[%emt 0:00:32]} 21. Rxg4 {[%emt 0:00:09]} d4 {[%emt 0:00:43]} 22. Rf1 {[%emt 0:01:08]} Rhe8 {[%emt 0:00:37]} 23. Rg7 {[%emt 0:01:02]} Rd7 {[%emt 0:00:28]} 24. Rf6+ {[%emt 0:00:13]} Re6 {[%emt 0:00:15]} 25. Rxe6+ {[%emt 0:00:17]} Kxe6 {[%emt 0:00:19]} 26. Rxd7 {[%emt 0:00:04]} Kxd7 {[%emt 0:00:02]} 27. Kf2 {[%emt 0:00:07]} Kd6 {[%emt 0:00:23]} 28. a5 {[%emt 0:00:24]} Kc6 {[%emt 0:01:07]} 29. g4 {[%emt 0:00:04]} Kb5 {[%emt 0:00:20]} 30. Ke2 {[%emt 0:01:02]} Kxb4 {[%emt 0:02:55]} 31. g5 {[%emt 0:00:08]} Kc5 {[%emt 0:00:23]} 32. h4 {[%emt 0:00:05]} Kd6 {[%emt 0:00:06]} 33. h5 {[%emt 0:00:11]} Ke6 {[%emt 0:00:25]} 34. Kd3 {[%emt 0:00:09]} Ke7 {[%emt 0:03:08]} 35. Kc4 {[%emt 0:00:07]} Ke6 {[%emt 0:00:37]} 36. Kc5 {[%emt 0:00:06]} 1-0

[Event "Nakhchivan Open 2024"]
[Site "Nakhchivan"]
[Date "2024.01.12"]
[Round "5.1"]
[White "Hasanzade, Toghrul"]
[Black "Gasimov, Parviz"]
[Result "1/2-1/2"]
[ECO "E92"]
[WhiteElo "2329"]
[BlackElo "2362"]
[Annotator "RC"]
[PlyCount "21"]
[EventDate "2024.01.11"]
[EventType "swiss"]
[EventCountry "AZE"]
[SourceTitle "playchess.com"]
[Source "ChessBase"]
[SourceQuality "1"]
[TimeControl "5400+30"]

1. d4 {[%emt 0:00:02]} Nf6 {[%emt 0:02:15]} 2. Nf3 {[%emt 0:00:10]} g6 {[%emt 0:00:18]} 3. c4 {[%emt 0:00:06]} Bg7 {[%emt 0:00:09]} 4. Nc3 {[%emt 0:00:07]} O-O {[%emt 0:00:26]} 5. e4 {[%emt 0:00:12]} d6 {[%emt 0:00:23]} 6. Be2 {[%emt 0:00:15]} e5 {[%emt 0:00:19]} 7. dxe5 {[%emt 0:00:06]} dxe5 {[%emt 0:00:08]} 8. Qxd8 {[%emt 0:00:05]} Rxd8 {[%emt 0:00:07]} 9. Bg5 {[%emt 0:00:10]} Re8 {[%emt 0:01:02]} 10. O-O {[%emt 0:00:36]} c6 {[%emt 0:01:19]} 11. Rfd1 {[%emt 0:00:20]} 1/2-1/2